lending/lending_fUSD_20240605
["ID","MTS","AMOUNT","RATE_DAILY","PERIOD"]
[328581253,1717563034161,-254.486982,0.00028409,2]
[328581255,1717563034170,-10564.58051392,0.00028567,2]
[328581257,1717563034182,-151.0,0.00028674,2]
[328581260,1717563034191,-168.59,0.00028703,2]
[328581262,1717563034201,-721.375399,0.00028755,2]
[328581263,1717563034210,-601.111706,0.00028755,2]
[328581266,1717563034220,-254.486982,0.00028755,2]
[328581268,1717563034229,-749.94930767,0.000288,2]
[328581269,1717563034239,-150.0,0.000289,2]
[328581271,1717563034251,-10564.58051392,0.000289,2]
[328581273,1717563034262,-150.36579679,0.00028907,2]
[328581276,1717563034272,-265.85210799,0.0002899,2]
[328581278,1717563034281,-2845.0,0.00029,2]
[328581279,1717563034292,-744.0,0.00029,2]
[328581281,1717563034301,-155.0,0.00029,7]
[328581283,1717563034310,-5000.0,0.00029,7]
[328581284,1717563034319,-4166.39963549,0.00029028,2]
[328581285,1717563034330,-1064.43347818,0.0002903,2]
[328581286,1717563034339,-800.0,0.00029096,2]
[328581287,1717563034348,-159.054365,0.00029102,2]
[328581288,1717563034358,-721.375399,0.00029102,2]
[328581289,1717563034367,-601.111706,0.00029102,2]
[328581290,1717563034376,-254.486982,0.00029102,2]
[328581291,1717563034386,-10564.58051392,0.00029233,15]
[328581292,1717563034395,-153.71127134,0.00029305,2]
[328581293,1717563034405,-159.92174591,0.0002932,2]
[328581294,1717563034414,-150.0,0.00029326,2]
[328581295,1717563034424,-150.0,0.00029326,2]
[328581296,1717563034435,-150.0,0.00029326,2]
[328581297,1717563034445,-150.0,0.00029326,2]
[328581298,1717563034454,-150.0,0.00029326,2]
[328581299,1717563034464,-150.0,0.00029326,2]
[328581300,1717563034473,-150.0,0.00029326,2]
[328581301,1717563034483,-150.0,0.00029326,2]
[328581302,1717563034492,-198.56253,0.00029326,2]
[328581303,1717563034501,-170.87,0.00029336,2]
[328581304,1717563034511,-175.714979,0.00029367,2]
[328581305,1717563034521,-333.35166747,0.0002938,2]
[328581306,1717563034531,-419.23220875,0.0002938,2]
[328581307,1717563034541,-1000.0,0.00029393,2]
[328581308,1717563034551,-155.4946261,0.00029426,2]
[328581309,1717563034560,-156.01922145,0.00029439,2]
[328581310,1717563034570,-450.954,0.00029445,2]
[328581311,1717563034580,-1023.553,0.00029445,2]
[328581312,1717563034589,-219.792,0.00029445,2]
[328581313,1717563034598,-2422.258,0.00029445,2]
[328581314,1717563034608,-808.0,0.00029445,2]
[328581315,1717563034617,-192.686,0.00029445,2]
[328581316,1717563034626,-291.571,0.00029445,2]
[328581317,1717563034636,-158.411,0.00029445,2]
[328581318,1717563034645,-1333.14,0.00029445,2]
[328581319,1717563034655,-227.0,0.00029445,2]
[328581320,1717563034665,-553.97,0.00029445,2]
[328581321,1717563034674,-3171.0,0.00029445,2]
[328581322,1717563034685,-5147.0,0.00029445,2]
[328581323,1717563034694,-37998.0,0.00029445,2]
[328581324,1717563034703,-5821.561,0.00029445,2]
[328581325,1717563034715,-302.717,0.00029445,2]
[328581326,1717563034725,-180.0,0.00029457,2]
[328581327,1717563034735,-253.46,0.0002947,2]
[328581328,1717563034745,-3419.4029,0.0002948,2]
[328581329,1717563034754,-55459.24892572,0.0002948,2]
[328581330,1717563034763,-1000.0,0.0002948,2]
[328581331,1717563034772,-7500.0,0.0002948,2]
[328581332,1717563034782,-1025.58252144,0.0002948,2]
[328581333,1717563034791,-1025.58252144,0.00029485,2]
[328581334,1717563034801,-1025.58252144,0.00029489,2]
[328581335,1717563034810,-2815.84071607,0.00029489,2]
[328581336,1717563034819,-9240.6229412,0.00029493,2]
[328581337,1717563034828,-153.71127134,0.00029504,2]
[328581338,1717563034838,-9240.62294118,0.0002953,2]
[328581339,1717563034847,-156.01922145,0.00029535,2]
[328581340,1717563034857,-156.01922145,0.00029538,2]
[328581341,1717563034866,-186.0,0.0002955,15]
[328581342,1717563034875,-186.0,0.0002956,15]
[328581343,1717563034885,-150.0,0.00029562,7]
[328581344,1717563034894,-10564.58051392,0.00029567,15]
[328581345,1717563034903,-9240.62294118,0.00029567,2]
[328581346,1717563034912,-153.01,0.0002957,2]
[328581347,1717563034922,-253.46,0.0002957,2]
[328581348,1717563034933,-253.46,0.0002957,2]
[328581349,1717563034942,-253.46,0.0002957,2]
[328581350,1717563034951,-186.0,0.0002957,15]
[328581351,1717563034960,-273.0,0.0002957,15]
[328581352,1717563034970,-150.5,0.0002957,15]
[328581353,1717563034979,-153.01,0.0002957,2]
[328581354,1717563034988,-153.01,0.0002957,2]
[328581355,1717563034998,-253.46,0.0002957,2]
[328581356,1717563035007,-253.46,0.0002957,2]
[328581357,1717563035017,-253.46,0.0002957,2]
[328581358,1717563035026,-253.46,0.0002957,2]
[328581359,1717563035035,-253.46,0.0002957,2]
[328581360,1717563035044,-4311.94401306,0.00029577,2]
[328581361,1717563035053,-12700.67906269,0.00029578,3]
[328581362,1717563035063,-3683.37833237,0.00029578,2]
[328581363,1717563035072,-473.12237669,0.00029579,2]
[328581364,1717563035081,-355.14811038,0.00029579,2]
[328581365,1717563035090,-500.0,0.00029579,2]
[328581366,1717563035099,-480.34266492,0.00029579,2]
[328581367,1717563035108,-500.0,0.00029579,2]
[328581368,1717563035117,-626.48934805,0.00029579,2]
[328581369,1717563035127,-500.0,0.00029579,2]
[328581370,1717563035136,-500.0,0.00029579,2]
[328581371,1717563035146,-500.0,0.00029579,2]
[328581372,1717563035156,-500.0,0.00029579,2]
[328581373,1717563035165,-500.0,0.00029579,2]
[328581374,1717563035175,-500.0,0.00029579,2]
[328581375,1717563035186,-500.0,0.00029579,2]
[328581376,1717563035196,-500.0,0.00029579,2]
[328581377,1717563035205,-500.0,0.00029579,2]
[328581378,1717563035214,-350.61451414,0.00029579,2]
[328581379,1717563035224,-500.0,0.00029579,2]
[328581380,1717563035233,-417.4079251,0.00029579,2]
[328581381,1717563035243,-500.0,0.00029579,2]
[328581382,1717563035255,-500.0,0.00029579,2]
[328581383,1717563035265,-500.0,0.00029579,2]
[328581384,1717563035275,-351.74925079,0.00029579,2]
[328581385,1717563035284,-500.0,0.00029579,2]
[328581386,1717563035295,-150.0,0.00029579,2]
[328581387,1717563035304,-500.0,0.00029579,2]
[328581388,1717563035315,-500.0,0.00029579,2]
[328581389,1717563035324,-500.0,0.00029579,2]
[328581390,1717563035337,-500.0,0.00029579,2]
[328581391,1717563035347,-332.23965756,0.00029579,2]
[328581392,1717563035357,-500.0,0.00029579,2]
[328581393,1717563035366,-387.08014569,0.00029579,2]
[328581394,1717563035375,-143093.27650252,0.0002958,13]
[328581395,1717563035511,-522.67520343,0.0002958,13]
[328581409,1717563038618,-387.67138179,0.0002702,2]
[328581410,1717563038630,-3638.52016364,0.0002702,2]
[328581411,1717563038639,-2784.17983636,0.0002958,13]
[328581412,1717563038722,-382917.76724971,0.0002958,13]
[328581413,1717563038732,-1970885.11872624,0.0002958,7]
[328581414,1717563038743,-14984.39808015,0.0002958,7]
[328581416,1717563040342,-1163.52,0.0002874,2]
[328581417,1717563040351,-2664.65501137,0.0002958,7]
[328581418,1717563040458,-29130.09365987,0.0002958,7]
[328581419,1717563040569,-71497.21416725,0.0002958,7]
[328581420,1717563040581,-1556.79359381,0.0002958,7]
[328581457,1717563042621,-476.26156853,0.0002958,7]
[328581458,1717563043193,-33649.1412108,0.0002958,7]
[328581459,1717563043205,-704.5754563,0.0002958,7]
[328581460,1717563043216,-765517.92611398,0.0002958,7]
[328581461,1717563043415,-593.46637594,0.0002958,7]
[328581462,1717563043438,-409571.97608981,0.0002958,7]
[328581463,1717563043533,-14227.54827998,0.0002958,7]
[328581704,1717563045825,-226.57668191,0.00029579,5]
[328581706,1717563045835,-12911.56309797,0.0002958,7]
[328581728,1717563046014,-1362.98079444,0.0002958,7]
[328581730,1717563046029,-650.654916,0.0002958,7]
[328581995,1717564231778,-340.34,0.00017259,2]
[328581998,1717564231790,-98.14342205,0.00017259,2]
[328582000,1717564231800,-226.57668191,0.000201,2]
[328582002,1717564231810,-160.82,0.00024384,2]
[328582004,1717564231819,-587.33938456,0.00025,2]
[328582006,1717564231832,-662.66061544,0.00025,2]
[328582007,1717564231841,-386.175254,0.00025855,2]
[328582008,1717564231850,-562.11,0.00025986,2]
[328582009,1717564231860,-747.0,0.00026371,2]
[328582010,1717564231869,-1300.0,0.00027,2]
[328582011,1717564231878,-4026.19154543,0.00027,2]
[328582012,1717564231887,-1360.83,0.00027563,2]
[328582013,1717564231896,-250.0,0.00027591,2]
[328582014,1717564231905,-250.0,0.00027742,2]
[328582015,1717564231914,-151.41013391,0.00027857,2]
[328582016,1717564231925,-363.6,0.00027857,2]
[328582017,1717564231937,-301.18986609,0.00027857,2]
[328582018,1717564231947,-38.53013431,0.0002787,2]
[328582019,1717564231958,-3434.32966942,0.0002787,2]
[328582020,1717564231969,-3610.18019627,0.0002787,2]
[328582021,1717564231979,-209.64,0.00028008,2]
[328582022,1717564231988,-250.0,0.00028045,2]
[328582023,1717564231997,-1257.95,0.00028049,2]
[328582024,1717564232006,-562.11,0.0002825,2]
[328582025,1717564232016,-1000.0,0.00028292,2]
[328582026,1717564232025,-360.51,0.00028369,2]
[328582027,1717564232034,-150.0,0.000289,2]
[328582028,1717564232043,-265.85210799,0.0002899,2]
[328582029,1717564232053,-1314.73726662,0.00028999,2]
[328582030,1717564232065,-605.34073338,0.00028999,2]
[328582031,1717564232074,-1350.0,0.00029,2]
[328582032,1717564232084,-486.8251,0.00029379,2]
[328582033,1717564232093,-2625.84395291,0.0002938,15]
[328582034,1717564232102,-482.7090983,0.0002938,15]
[328582035,1717564232111,-220.04415209,0.0002938,2]
[328582036,1717564232121,-329.94017739,0.0002938,2]
[328582037,1717564232132,-155.22145543,0.00029424,2]
[328582038,1717564232141,-156.01922145,0.00029435,2]
[328582039,1717564232150,-2625.84395291,0.00029438,15]
[328582040,1717564232159,-482.70909827,0.00029438,15]
[328582041,1717564232168,-158.0,0.00029445,2]
[328582042,1717564232178,-2310.99092863,0.00029445,2]
[328582043,1717564232189,-250.33780553,0.00029445,2]
[328582044,1717564232200,-4685.62561466,0.00029445,2]
[328582045,1717564232211,-328.83732509,0.00029445,2]
[328582046,1717564232222,-339.175,0.00029445,2]
[328582047,1717564232233,-2313.19032609,0.00029445,2]
[328582048,1717564232242,-150.1943612,0.00029479,2]
[328582049,1717564232252,-350.0,0.00029479,2]
[328582050,1717564232262,-127873.2809274,0.00029479,2]
[328582051,1717564232273,-471.08285842,0.00029479,2]
[328582053,1717564232289,-432.92,0.00029479,2]
[328582056,1717564232300,-7823.73689433,0.00029479,2]
[328582058,1717564232311,-570.09,0.00029479,2]
[328582064,1717564237781,-2522.76412342,0.00029479,2]
[328582065,1717564237831,-88584.54265779,0.00029479,2]
[328582066,1717564237843,-3805.66896297,0.00029479,2]
[328582067,1717564237854,-2598.47316635,0.00029479,2]
[328582068,1717564237865,-14181.69517129,0.00029479,2]
[328582069,1717564237877,-13175.0,0.00029479,2]
[328582070,1717564237888,-2068.59902885,0.00029479,2]
[328582071,1717564237900,-822.49017547,0.00029479,2]
[328582072,1717564238438,-712.08271485,0.00029479,2]
[328582138,1717564240544,-1568.29552831,0.00029479,2]
[328582156,1717564242865,-19527.30545311,0.00029479,2]
[328582157,1717564242908,-3343.76656531,0.00029479,2]
[328582158,1717564242919,-7246.19477986,0.00029479,2]
[328582159,1717564242930,-319.999995,0.00029479,2]
[328582160,1717564243048,-14358.88144296,0.00029479,2]
[328582161,1717564243061,-293.96149985,0.00029479,2]
[328582162,1717564243073,-693.78630288,0.00029479,2]
[328582163,1717564243088,-2494.54486462,0.00029479,2]
[328582164,1717564243099,-184510.83688696,0.00029479,2]
[328582165,1717564243109,-882.6522,0.0002948,2]
[328582166,1717564243118,-99197.0045,0.0002948,2]
[328582167,1717564243127,-127179.2038,0.0002948,2]
[328582168,1717564243136,-12915.55149619,0.0002948,2]
[328582169,1717564243145,-314.27643046,0.0002948,2]
[328582170,1717564243154,-173.19217151,0.0002948,2]
[328582171,1717564243163,-7263.37536668,0.0002948,2]
[328582172,1717564243172,-4390.56059249,0.0002948,2]
[328582173,1717564243180,-151.15371935,0.0002948,2]
[328582174,1717564243189,-188.01944471,0.00029489,2]
[328582175,1717564243198,-2625.84395291,0.00029496,15]
[328582176,1717564243207,-482.70909827,0.00029496,15]
[328582177,1717564243216,-159.92174591,0.00029499,2]
[328582178,1717564243225,-158.2947961,0.000295,2]
[328582179,1717564243234,-159.92174591,0.00029507,2]
[328582180,1717564243243,-7263.37536666,0.00029518,2]
[328582181,1717564243252,-153.04,0.00029543,2]
[328582182,1717564243261,-158.0,0.0002955,15]
[328582183,1717564243270,-2625.84395291,0.00029553,15]
[328582184,1717564243279,-482.70909827,0.00029553,15]
[328582185,1717564243288,-329.94017736,0.00029553,2]
[328582186,1717564243297,-7263.37536666,0.00029556,2]
[328582187,1717564243306,-158.0,0.0002956,15]
[328582188,1717564243315,-150.0,0.00029562,7]
[328582189,1717564243325,-150.5,0.0002957,15]
[328582190,1717564243334,-158.0,0.0002957,15]
[328582191,1717564243342,-156.46779989,0.00029578,7]
[328582193,1717564243352,-155.0,0.00029578,2]
[328582195,1717564243361,-200.0,0.00029578,2]
[328582197,1717564243370,-2234.88540312,0.00029578,2]
[328582199,1717564243379,-159.08875965,0.00029578,2]
[328582201,1717564243388,-2115.948,0.00029578,2]
[328582203,1717564243397,-578.92749038,0.00029579,7]
[328582205,1717564243406,-150.0,0.00029579,2]
[328582207,1717564243415,-1759.50544,0.00029579,2]
[328582209,1717564243425,-283260.34407473,0.0002958,13]
[328582211,1717564243436,-9392.20442508,0.0002958,13]
[328582213,1717564243447,-800.20440538,0.0002958,13]
[328582216,1717564243458,-1714.15423298,0.0002958,13]
[328582491,1717564247431,-3069.12259211,0.00029379,2]
[328582492,1717564247443,-590.82,0.00029379,2]
[328582493,1717564247472,-1678.22527411,0.00029379,2]
[328582494,1717564247514,-6818.12452324,0.00029379,2]
[328582495,1717564247652,-17635.69268118,0.00029379,2]
[328582496,1717564248247,-18960.0,0.00029379,2]
[328582497,1717564248260,-1955.24704471,0.00029379,2]
[328582529,1717565432050,-1804.68755728,0.00017206,2]
[328582530,1717565432061,-5289.28893931,0.00017207,2]
[328582531,1717565432072,-1489.01158007,0.00017208,2]
[328582532,1717565432081,-353.5219707,0.00023664,2]
[328582533,1717565432092,-163.8,0.00024384,2]
[328582534,1717565432102,-1250.0,0.00025,2]
[328582535,1717565432111,-565.4,0.00025769,2]
[328582536,1717565432120,-351.77,0.00026831,2]
[328582537,1717565432130,-1000.0,0.00026991,2]
[328582538,1717565432140,-1300.0,0.00027,2]
[328582539,1717565432149,-1487.82,0.00027121,2]
[328582540,1717565432159,-250.0,0.00027216,2]
[328582541,1717565432168,-20392.56634709,0.00027321,2]
[328582542,1717565432180,-382.4775,0.00027321,2]
[328582543,1717565432191,-614.7279758,0.00027321,2]
[328582544,1717565432202,-428.101543,0.00027321,2]
[328582545,1717565432213,-4786.58663411,0.00027321,2]
[328582546,1717565432222,-1216.05,0.00027352,2]
[328582547,1717565432232,-250.0,0.00027373,2]
[328582548,1717565432241,-806.64368738,0.0002739,2]
[328582549,1717565432250,-250.0,0.00027416,2]
[328582550,1717565432260,-165.38,0.00027427,2]
[328582551,1717565432269,-1180.81,0.00027672,2]
[328582552,1717565432278,-565.4,0.00028033,2]
[328582553,1717565432287,-62174.12887523,0.00028978,2]
[328582554,1717565432296,-1428.13275701,0.00028988,2]
[328582555,1717565432306,-150.0,0.00029,2]
[328582556,1717565432315,-1350.0,0.00029,2]
[328582557,1717565432324,-1000.0,0.000292,2]
[328582558,1717565432333,-185.43720562,0.00029221,2]
[328582559,1717565432343,-736.27460001,0.00029221,15]
[328582560,1717565432352,-329.94017736,0.00029279,2]
[328582561,1717565432361,-230.23,0.0002929,2]
[328582562,1717565432370,-230.23,0.0002929,2]
[328582563,1717565432379,-736.27459995,0.00029296,15]
[328582564,1717565432389,-101886.63078639,0.000293,2]
[328582570,1717565432521,-5309.99999566,0.000293,2]
[328582573,1717565432540,-625.3983,0.000293,2]
[328582575,1717565432552,-8437.01877512,0.000293,2]
[328582647,1717565438452,-411.82170065,0.00017206,2]
[328582676,1717565443144,-5851.42738579,0.00017206,2]
[328582677,1717565443153,-4064.45930452,0.000293,2]
[328582678,1717565443164,-1628.8462697,0.000293,2]
[328582679,1717565443216,-8454.13871299,0.000293,2]
[328582680,1717565443227,-1333.29816015,0.000293,2]
[328582695,1717565447750,-290.48392107,0.0002739,2]
[328582696,1717565448075,-463.58342532,0.0002739,2]
[328582697,1717565542303,680.74265457,0.00017259,2]
[328582698,1717565614440,4413.05534543,0.00017259,2]
[328582699,1717565671943,-1000.0,0.00014,2]
[328582700,1717565673446,-1000.0,0.00014,2]
[328582701,1717565674903,-1000.0,0.00014,2]
[328582724,1717566632376,-436.25186787,0.00013989,2]
[328582725,1717566632385,-1085.51034434,0.0001399,2]
[328582726,1717566632397,-660.30703712,0.0001399,2]
[328582727,1717566632407,-478.04529725,0.00014,2]
[328582728,1717566632453,-4744.61531666,0.00014,2]
[328582729,1717566632464,-947.56950504,0.00014,2]
[328582730,1717566632529,-627.85298596,0.00014,2]
[328582731,1717566632541,-8765.97431311,0.00014,2]
[328582732,1717566632607,-2156.60246342,0.00014,2]
[328582733,1717566632619,-1200.22252239,0.00014,2]
[328582734,1717566632630,-664.03948097,0.00014,2]
[328582735,1717566632641,-364.18813852,0.00014,2]
[328582736,1717566632652,-1087.10900317,0.00014,2]
[328582737,1717566632689,-4575.50666925,0.00014,2]
[328582740,1717566632700,-1948.15041126,0.00014,2]
[328582742,1717566632711,-9990.19263993,0.00014,2]
[328582775,1717566638542,-5676.75000018,0.00014,2]
[328582799,1717566643831,-389.72999925,0.00014,2]
[328582800,1717566643846,-6000.20078073,0.00014,2]
[328582801,1717566643857,-257.00999508,0.00014,2]
[328582802,1717566643918,-17756.74467555,0.00014,2]
[328582803,1717566643929,-7530.28603463,0.00014,2]
[328582804,1717566643941,-3756.00375486,0.00014,2]
[328582805,1717566643952,-1660.79179,0.00014,2]
[328582807,1717566644419,-2844.18818931,0.00014,2]
[328582860,1717566645017,-17499.58481972,0.00014,2]
[328582863,1717566645028,-59528.44703438,0.00014,2]
[328582869,1717566645077,-50.00001834,0.00014,2]
[328582875,1717566645122,-662.70634916,0.00014,2]
[328582885,1717566645223,-453.8784,0.00014,2]
[328582891,1717566646488,-4500.98228493,0.00014,2]
[328582892,1717566646500,-6541.42000035,0.00014,2]
[328582893,1717566648326,-1126.91154092,0.00014,2]
[328582894,1717566648467,-613.71767402,0.00014,2]
[328582895,1717566648478,-419.97933242,0.00014,2]
[328582896,1717566648490,-3301.69124587,0.00014,2]
[328582917,1717567755290,-436.25186787,0.00013367,2]
[328582918,1717567755311,-900.026475,0.00013368,2]
[328582919,1717567755331,-220.29473789,0.00013435,2]
[328582920,1717567755354,-166.4763495,0.00013436,2]
[328582921,1717567755375,-155.0,0.00013437,2]
[328582922,1717567755396,-567.28554548,0.00013509,2]
[328582923,1717567755417,-567.28554548,0.00013509,2]
[328582924,1717567755441,-567.28554548,0.00013509,2]
[328582925,1717567755461,-567.28554548,0.00013509,2]
[328582926,1717567755482,-567.28554548,0.00013509,2]
[328582927,1717567755503,-567.28554548,0.00013509,2]
[328582928,1717567755523,-567.28554548,0.00013509,2]
[328582929,1717567755544,-155.32461979,0.00013513,2]
[328582930,1717567755564,-598.35916904,0.00013612,2]
[328582931,1717567755584,-419.50757395,0.0001386,2]
[328582932,1717567755605,-338572.21786453,0.00014,2]
[328582933,1717567755627,-6757.95108965,0.00014,2]
[328582934,1717567755648,-1019.25123442,0.00014,2]
[328582935,1717567785807,-1000.0,0.00014,2]
[328582952,1717567831625,-3.08145558,0.00014,2]
[328582953,1717567831634,-268.21854432,0.00017259,2]
[328582954,1717567831646,-4255.0,0.00017259,2]
[328582955,1717567831658,-1818.78134289,0.00017259,2]
[328582957,1717567831718,-600.0,0.00017259,2]
[328582958,1717567831831,-435.0,0.00017259,2]
[328582959,1717567831842,-315.04,0.00017259,2]
[328582960,1717567831856,-8520.33847634,0.00017259,2]
[328582961,1717567831869,-728.92117432,0.00017259,2]
[328582962,1717567831880,-2899.64000025,0.00017259,2]
[328582963,1717567831936,-836.74867698,0.00017259,2]
[328582964,1717567831950,-2832.22368079,0.00017259,2]
[328583089,1717567839811,-417.33513399,0.00017259,2]
[328583090,1717567839823,-278.25934678,0.00017259,2]
[328583091,1717567839834,-566.76354058,0.00017259,2]
[328583092,1717567839846,-1631.32463,0.00017259,2]
[328583093,1717567840058,-515.29338044,0.00017259,2]
[328583094,1717567840075,-361.675,0.00017259,2]
[328583095,1717567840087,-1023.5008851,0.00017259,2]
[328583096,1717567840100,-358.48667185,0.00017259,2]
[328583097,1717567840112,-2883.43524583,0.00017259,2]
[328583098,1717567840195,-1606.28389734,0.00017259,2]
[328583099,1717567840205,-150.99,0.00017259,2]
[328583100,1717567840215,-1655.92309262,0.00019,2]
[328583101,1717567840228,-289.75713167,0.00019,2]
[328583102,1717567840241,-76.65246571,0.00019,2]
[328583103,1717567840251,-1343.27159664,0.000212,5]
[328583127,1717567840747,-250.4005637,0.000212,5]
[328583130,1717567840760,-4406.32783966,0.000212,5]
[328583132,1717567840771,-150.0,0.0002189,2]
[328583134,1717567840785,-499.99,0.0002189,2]
[328583136,1717567840795,-620.04,0.00022776,2]
[328583138,1717567840804,-168.73168778,0.00023,2]
[328583141,1717567840814,-391.88,0.00023604,2]
[328583144,1717567840825,-250.0,0.00023671,2]
[328583146,1717567840835,-2022.33269,0.00024,2]
[328583148,1717567840844,-1223.64,0.00024031,2]
[328583150,1717567840856,-293.14,0.00024143,2]
[328583152,1717567840866,-1155.82,0.00024157,2]
[328583154,1717567840878,-1000.0,0.00024179,2]
[328583156,1717567840888,-250.0,0.00024381,2]
[328583158,1717567840898,-179.12,0.00024384,2]
[328583160,1717567840907,-178.1,0.00024384,2]
[328583162,1717567840916,-160.5,0.00024384,2]
[328583164,1717567840926,-1699.81,0.00024445,2]
[328583165,1717567840935,-165.4,0.00024493,3]
[328583166,1717567840944,-264.93,0.00024616,2]
[328583167,1717567840954,-3916.95,0.0002462,2]
[328583168,1717567840963,-165.38,0.00024629,2]
[328583169,1717567840972,-250.0,0.0002463,2]
[328583170,1717567840982,-1267.97,0.00024701,2]
[328583171,1717567840992,-5354.85326539,0.00024798,2]
[328583172,1717567841001,-5354.85326533,0.00024798,2]
[328583173,1717567841011,-5354.85326533,0.00024798,2]
[328583174,1717567841021,-5354.85326533,0.00024798,2]
[328583175,1717567841031,-5354.85326533,0.00024798,2]
[328583176,1717567841041,-5354.85326533,0.00024798,2]
[328583177,1717567841050,-5354.85326533,0.00024798,2]
[328583178,1717567841060,-1834.52494885,0.00024799,2]
[328583179,1717567841069,-155.0,0.00024999,2]
[328583180,1717567841080,-1250.0,0.00025,2]
[328583181,1717567841090,-1476.22209861,0.00025,2]
[328583182,1717567841100,-620.04,0.0002504,2]
[328583183,1717567841109,-4320.91465528,0.0002514,2]
[328583184,1717567841138,-2644.77534472,0.0002514,2]
[328583185,1717567841147,-1834.52494885,0.00026344,2]
[328583186,1717567841156,-5354.85326533,0.00026344,2]
[328583187,1717567841166,-752.05039497,0.00026618,2]
[328583188,1717567841175,-1223.64,0.00026771,2]
[328583189,1717567841185,-1300.0,0.00027,2]
[328583190,1717567841194,-170.87,0.00027108,2]
[328583191,1717567841205,-4026.19154543,0.000272,2]
[328583192,1717567841214,-1000.0,0.00027201,2]
[328583193,1717567841224,-620.04,0.00027304,2]
[328583194,1717567841234,-52.57634099,0.0002739,2]
[328583195,1717567841243,-257.8719227,0.0002739,2]
[328583196,1717567841253,-446.60502179,0.0002739,2]
[328583197,1717567841262,-436.25186787,0.00027825,2]
[328583198,1717567841271,-220.29473789,0.00027825,2]
[328583199,1717567841281,-289.0,0.00027826,2]
[328583200,1717567841291,-5147.0,0.00027826,2]
[328583201,1717567841300,-5772.0,0.00027826,2]
[328583202,1717567841310,-12488.351,0.00027826,2]
[328583203,1717567841320,-180.0,0.00027839,2]
[328583204,1717567841329,-794.83939598,0.00028097,2]
[328583205,1717567841339,-1834.52494885,0.00028122,2]
[328583206,1717567841349,-5354.85326533,0.00028122,2]
[328583207,1717567841358,-158.181127,0.00028214,7]
[328583208,1717567841368,-296.652671,0.00028214,7]
[328583209,1717567841379,-300.0,0.000288,10]
[328583210,1717567841388,-600.0,0.000289,10]
[328583211,1717567841398,-2561.0,0.00029,2]
[328583212,1717567841408,-707.0,0.00029,2]
[328583213,1717567841417,-18394.8593524,0.00029,5]
[328583214,1717567841427,-1350.0,0.00029,2]
[328583215,1717567841437,-2022.3327,0.00029,2]
[328583216,1717567841446,-25000.0,0.00029008,2]
[328583217,1717567841456,-172.31647899,0.0002903,2]
[328583218,1717567841465,-151.83998219,0.0002903,2]
[328583219,1717567841475,-354.04625441,0.0002903,2]
[328583220,1717567841484,-214.7575,0.0002903,2]
[328583221,1717567841493,-1000.0,0.000291,10]
[328583222,1717567841503,-5000.0,0.00029119,2]
[328583223,1717567841512,-172.67,0.0002912,2]
[328583224,1717567841521,-172.67,0.0002912,2]
[328583225,1717567841531,-172.67,0.0002912,2]
[328583226,1717567841540,-172.67,0.0002912,2]
[328583227,1717567841549,-204.46821748,0.0002912,2]
[328583228,1717567841559,-242992.41155732,0.0002913,10]
[328583229,1717567841572,-439.015,0.0002913,10]
[328583230,1717567841584,-2521.94984755,0.0002913,10]
[328583235,1717567842646,-623.25,0.0002913,10]
[328583236,1717567842750,-153385.70397512,0.0002913,10]
[328583237,1717567842759,-151.0,0.0002913,7]
[328583238,1717567842768,-188.01944471,0.000292,2]
[328583239,1717567842783,-251.42114436,0.000292,2]
[328583240,1717567842792,-5447.53152505,0.000292,2]
[328583241,1717567842801,-1300.0,0.000292,10]
[328583242,1717567842811,-151.83998217,0.00029204,2]
[328583243,1717567842821,-5447.53152499,0.00029264,2]
[328583244,1717567842830,-161.15735837,0.00029283,3]
[328583245,1717567842839,-296.9,0.000293,2]
[328583246,1717567842851,-151.0,0.000293,7]
[328583247,1717567842859,-151.0,0.000293,7]